bitfinex/quotes_BTCUSD_20220120
["timestamp","ask_amount","ask_price","bid_price","bid_amount"]
[1642678266149,0.059377,42103.0,42102.0,1.95199856]
[1642678266348,0.059377,42103.0,42102.0,1.9521017]
[1642678266609,0.059377,42103.0,42102.0,2.0521017]
[1642678266804,0.059377,42103.0,42102.0,2.0631017]
[1642678267405,0.059377,42103.0,42102.0,1.76536814]
[1642678268208,0.059377,42103.0,42102.0,1.75436814]
[1642678268906,0.059377,42103.0,42102.0,1.76536814]
[1642678270952,0.059377,42103.0,42102.0,1.77536814]
[1642678272752,0.059377,42103.0,42102.0,1.75436814]
[1642678272953,0.059377,42103.0,42102.0,1.76436814]
[1642678273855,0.059377,42103.0,42102.0,1.38097314]
[1642678274714,0.059377,42103.0,42102.0,1.37097314]
[1642678274917,0.059377,42103.0,42102.0,1.38197314]
[1642678275319,0.059377,42103.0,42102.0,1.62197314]
[1642678276115,0.059377,42103.0,42102.0,1.61097314]
[1642678276921,0.059377,42103.0,42102.0,1.61897314]
[1642678278259,0.059377,42103.0,42102.0,1.61097314]
[1642678278859,0.059377,42103.0,42102.0,1.62197314]
[1642678280660,0.059377,42103.0,42102.0,1.61097314]
[1642678280860,0.059377,42103.0,42102.0,1.61997314]
[1642678282804,0.059377,42103.0,42102.0,1.61097314]
[1642678283006,0.059377,42103.0,42102.0,1.62397314]
[1642678283208,0.059377,42103.0,42102.0,0.36497314]
[1642678284207,0.059377,42103.0,42102.0,0.35197314]
[1642678285007,0.059377,42103.0,42102.0,0.36197314]
[1642678286155,0.059377,42103.0,42102.0,0.35197314]
[1642678286353,0.059377,42103.0,42102.0,0.25197314]
[1642678286554,0.059377,42103.0,42102.0,0.35197314]
[1642678286954,0.059377,42103.0,42102.0,0.36197314]
[1642678287556,0.059377,42103.0,42102.0,1.81880133]
[1642678287755,0.059377,42103.0,42102.0,2.30219633]
[1642678287954,0.05931539,42103.0,42102.0,2.30219633]
[1642678288154,0.05931539,42103.0,42102.0,1.99436814]
[1642678289008,0.05931539,42103.0,42102.0,2.00236814]
[1642678290009,0.05931539,42103.0,42102.0,1.99049814]
[1642678290311,0.05931539,42103.0,42102.0,1.94436814]
[1642678290907,0.05931539,42103.0,42102.0,1.95336814]
[1642678292211,0.05931539,42103.0,42102.0,0.68536814]
[1642678292417,0.05931539,42103.0,42102.0,0.30197314]
[1642678292611,0.05931539,42103.0,42102.0,0.20197314]
[1642678292855,0.05931539,42103.0,42102.0,0.31097314]
[1642678293858,0.05931539,42103.0,42102.0,0.21097314]
[1642678294057,0.05931539,42103.0,42102.0,0.31097314]
[1642678294758,0.05931539,42103.0,42102.0,0.30197314]
[1642678294968,0.05931539,42103.0,42102.0,0.30997314]
[1642678295158,0.1622952,42103.0,42102.0,0.30997314]
[1642678295560,0.05931539,42103.0,42102.0,0.30997314]
[1642678296359,0.05931539,42103.0,42102.0,0.20197314]
[1642678296602,0.05931539,42103.0,42102.0,0.30197314]
[1642678296906,0.05931539,42103.0,42102.0,0.31297314]
[1642678297513,0.05931539,42103.0,42102.0,0.21297314]
[1642678297705,0.05931539,42103.0,42102.0,0.31297314]
[1642678298105,0.05931539,42103.0,42102.0,0.30197314]
[1642678298908,0.05931539,42103.0,42102.0,0.21997314]
[1642678299108,0.05931539,42103.0,42102.0,0.31997314]
[1642678299906,0.16183665,42103.0,42102.0,0.31997314]
[1642678300113,0.05931539,42103.0,42102.0,0.20197314]
[1642678300357,0.05931539,42103.0,42102.0,0.30197314]
[1642678300755,0.16217278,42103.0,42102.0,0.30197314]
[1642678300955,0.05931539,42103.0,42102.0,0.31697314]
[1642678301355,0.05931539,42103.0,42102.0,0.21697314]
[1642678302255,0.05931539,42103.0,42102.0,0.20197314]
[1642678302956,0.05931539,42103.0,42102.0,0.20997314]
[1642678304309,0.05931539,42103.0,42102.0,0.20197314]
[1642678304907,0.05931539,42103.0,42102.0,0.21197314]
[1642678306207,0.05931539,42103.0,42102.0,0.20197314]
[1642678307008,0.05931539,42103.0,42102.0,0.21497314]
[1642678307207,0.16225583,42103.0,42102.0,0.21497314]
[1642678307853,0.16225583,42103.0,42102.0,0.21490391]
[1642678308259,0.16225583,42103.0,42102.0,0.20190391]
[1642678309055,0.16225583,42103.0,42102.0,0.21790391]
[1642678310259,0.16225583,42103.0,42102.0,0.20190391]
[1642678310457,0.16225583,42103.0,42102.0,0.21377391]
[1642678310661,0.05931539,42103.0,42102.0,0.21377391]
[1642678310856,0.10931539,42103.0,42102.0,0.21377391]
[1642678311156,0.10931539,42103.0,42102.0,0.22877391]
[1642678311536,0.21220114,42103.0,42102.0,0.22877391]
[1642678312336,0.21220114,42103.0,42102.0,0.21377391]
[1642678313137,0.21220114,42103.0,42102.0,0.23377391]
[1642678314237,0.21220114,42103.0,42102.0,0.21377391]
[1642678315039,0.21220114,42103.0,42102.0,0.23277391]
[1642678316254,0.21220114,42103.0,42102.0,0.21377391]
[1642678316456,0.21220114,42103.0,42102.0,0.20190391]
[1642678317063,0.21220114,42103.0,42102.0,0.21990391]
[1642678318257,0.21220114,42103.0,42102.0,0.20190391]
[1642678319105,0.21220114,42103.0,42102.0,0.21890391]
[1642678320306,0.21220114,42103.0,42102.0,0.20190391]
[1642678321110,0.21220114,42103.0,42102.0,0.21690391]
[1642678322309,0.21220114,42103.0,42102.0,0.20190391]
[1642678322957,0.10931539,42103.0,42102.0,0.20190391]
[1642678323157,0.21283803,42103.0,42102.0,0.21790391]
[1642678323459,0.10931539,42103.0,42102.0,0.21790391]
[1642678324458,0.10931539,42103.0,42102.0,0.20190391]
[1642678325061,0.10931539,42103.0,42102.0,0.21890391]
[1642678325258,0.40394187,42103.0,42102.0,0.21890391]
[1642678325462,0.50743629,42103.0,42102.0,0.21890391]
[1642678325857,0.50743629,42103.0,42099.0,0.01187]
[1642678326268,0.10349442,42102.0,42099.0,0.01187]
[1642678326516,0.22146842,42102.0,42101.0,0.01187]
[1642678326816,0.27146842,42102.0,42101.0,0.01187]
[1642678327016,0.27146842,42102.0,42101.0,0.02487]
[1642678328620,0.27146842,42102.0,42101.0,0.01187]
[1642678329020,0.27146842,42102.0,42101.0,0.02487]
[1642678330025,0.27146842,42102.0,42101.0,0.408265]
[1642678330257,0.168774,42102.0,42101.0,0.395265]
[1642678330460,0.168774,42102.0,42101.0,0.495265]
[1642678330765,0.168774,42102.0,42101.0,0.77818065]
[1642678330961,0.168774,42102.0,42101.0,0.495265]
[1642678331162,0.168774,42102.0,42101.0,0.508265]
[1642678331762,0.118774,42102.0,42101.0,0.508265]
[1642678332166,0.118774,42102.0,42101.0,1.11383036]
[1642678332364,0.118774,42102.0,42101.0,1.10083036]
[1642678332865,0.118774,42102.0,42101.0,0.495265]
[1642678333067,0.118774,42102.0,42101.0,1.39783235]
[1642678333466,0.118774,42102.0,42101.0,0.79226699]
[1642678333872,0.05931539,42103.0,42101.0,1.09284979]
[1642678334308,0.05931539,42103.0,42102.0,0.28277957]
[1642678334510,0.05931539,42103.0,42102.0,0.66617457]
[1642678334709,0.05931539,42103.0,42102.0,0.383395]
[1642678334909,0.05931539,42103.0,42102.0,0.483395]
[1642678335112,0.05931539,42103.0,42102.0,0.493395]
[1642678336310,0.05931539,42103.0,42102.0,0.483395]
[1642678336711,0.05931539,42103.0,42102.0,0.723395]
[1642678337112,0.05931539,42103.0,42102.0,0.733395]
[1642678338263,0.05931539,42103.0,42102.0,0.723395]
[1642678339065,0.05931539,42103.0,42102.0,0.733395]
[1642678339964,0.05931539,42103.0,42102.0,0.745265]
[1642678341264,0.05931539,42103.0,42102.0,0.755265]
[1642678342413,0.05878539,42103.0,42102.0,0.755265]
[1642678342813,0.05878539,42103.0,42102.0,0.745265]
[1642678343011,0.05878539,42103.0,42102.0,0.755265]
[1642678343210,0.05878539,42103.0,42102.0,0.745265]
[1642678344412,0.05878539,42103.0,42102.0,0.735265]
[1642678345013,0.05878539,42103.0,42102.0,0.745265]
[1642678345265,0.17018457,42103.0,42102.0,0.745265]
[1642678345567,0.05878539,42103.0,42102.0,0.745265]
[1642678345767,0.17018457,42103.0,42102.0,0.745265]
[1642678345965,0.05878539,42103.0,42102.0,0.745265]
[1642678346166,0.17018457,42103.0,42102.0,0.745265]
[1642678346366,0.17018457,42103.0,42102.0,0.735265]
[1642678346567,0.17018457,42103.0,42102.0,0.715265]
[1642678346967,0.22018457,42103.0,42102.0,0.715265]
[1642678347269,0.22018457,42103.0,42102.0,0.725265]
[1642678348370,0.22018457,42103.0,42102.0,0.715265]
[1642678349209,0.22018457,42103.0,42102.0,0.725265]
[1642678350408,0.22018457,42103.0,42102.0,0.715265]
[1642678350811,0.17018457,42103.0,42102.0,0.715265]
[1642678351213,0.17018457,42103.0,42102.0,0.36187]
[1642678351414,0.52285496,42103.0,42102.0,0.25]
[1642678351616,0.768787,42102.0,42097.0,0.01187]
[1642678351813,0.32500093,42099.0,42097.0,0.01187]
[1642678352023,0.32500093,42099.0,42098.0,6.877e-05]
[1642678352415,0.11139918,42099.0,42098.0,0.01193877]
[1642678353160,0.11139918,42099.0,42098.0,0.03093877]
[1642678354960,0.11139918,42099.0,42098.0,0.01193877]
[1642678355161,0.17079295,42099.0,42098.0,0.03093877]
[1642678355362,0.11139918,42099.0,42098.0,0.03093877]
[1642678355962,0.11139918,42099.0,42098.0,0.41442477]
[1642678356163,0.11139918,42099.0,42098.0,0.51442477]
[1642678356362,0.11139918,42099.0,42098.0,0.49542477]
[1642678357013,0.11139918,42099.0,42098.0,0.73542477]
[1642678357216,0.11139918,42099.0,42098.0,0.74742477]
[1642678357411,0.11139918,42099.0,42098.0,0.72742477]
[1642678358514,0.11139918,42099.0,42098.0,0.72729477]
[1642678359113,0.11139918,42099.0,42098.0,0.73929477]
[1642678360364,0.11139918,42099.0,42098.0,0.72729477]
[1642678361265,0.11139918,42099.0,42098.0,0.73829477]
[1642678362372,0.11139918,42099.0,42098.0,0.72729477]
[1642678363167,0.11139918,42099.0,42098.0,0.73829477]
[1642678364312,0.11139918,42099.0,42098.0,0.72729477]
[1642678365112,0.11139918,42099.0,42098.0,0.73829477]
[1642678366313,0.11139918,42099.0,42098.0,0.72729477]
[1642678367114,0.11139918,42099.0,42098.0,0.63729477]
[1642678368366,0.11139918,42099.0,42098.0,0.72729477]
[1642678369167,0.11139918,42099.0,42098.0,0.73729477]
[1642678370369,0.11139918,42099.0,42098.0,0.72729477]
[1642678371170,0.11139918,42099.0,42098.0,0.73729477]
[1642678372409,0.11139918,42099.0,42098.0,0.72729477]
[1642678373310,0.11139918,42099.0,42098.0,0.73729477]
[1642678373511,0.11877,42100.0,42098.0,0.73729477]
[1642678373912,0.06044649,42101.0,42098.0,0.73729477]
[1642678374111,0.059384,42101.0,42098.0,0.73729477]
[1642678374312,0.0604465,42101.0,42098.0,0.73729477]
[1642678374510,0.11130435,42100.0,42098.0,0.72729477]
[1642678374711,0.0604465,42101.0,42098.0,0.72729477]
[1642678375110,0.0604465,42101.0,42098.0,0.73729477]
[1642678375365,0.059384,42101.0,42098.0,0.73729477]
[1642678376362,0.059384,42101.0,42100.0,0.01187]
[1642678376561,0.059384,42101.0,42100.0,0.395356]
[1642678376963,0.059384,42101.0,42100.0,0.8170443]
[1642678377166,0.00106251,42102.0,42100.0,2.68981456]
[1642678377361,0.00100073,42102.0,42101.0,1.16061035]
[1642678377561,0.109371,42105.0,42101.0,2.56751035]
[1642678377762,6.877e-05,42102.0,42101.0,3.17328061]
[1642678377966,6.877e-05,42102.0,42101.0,3.23264961]
[1642678378160,6.877e-05,42102.0,42101.0,3.24451961]
[1642678378362,6.877e-05,42102.0,42101.0,3.18515061]
[1642678378861,6.877e-05,42102.0,42101.0,2.57938035]
[1642678379110,6.877e-05,42102.0,42101.0,2.59238035]
[1642678379909,6.877e-05,42102.0,42101.0,1.81527]
[1642678380517,6.877e-05,42102.0,42101.0,1.80227]
[1642678381110,4.50968577,42102.0,42101.0,1.81527]
[1642678381311,4.50968577,42102.0,42101.0,1.43177]
[1642678381911,4.55968577,42102.0,42101.0,1.43177]
[1642678382511,4.55968577,42102.0,42101.0,1.41877]
[1642678382788,4.50968577,42102.0,42101.0,1.41877]
[1642678383191,4.50968577,42102.0,42101.0,1.43177]
[1642678383586,4.50968577,42102.0,42101.0,2.03754026]
[1642678383789,0.72846951,42102.0,42101.0,2.23754026]
[1642678384090,0.25363251,42102.0,42101.0,3.73314961]
[1642678384289,0.00106195,42104.0,42103.0,1.05]
[1642678384489,0.00106195,42104.0,42103.0,3.06983746]
[1642678384690,0.00106195,42104.0,42103.0,3.16983746]
[1642678384989,1.77938271,42112.0,42111.0,0.32678665]
[1642678385195,1.77938271,42112.0,42111.0,0.37468665]
[1642678385389,1.77938271,42112.0,42111.0,0.47468665]
[1642678386290,1.77938271,42112.0,42111.0,0.15977]
[1642678386520,1.77938271,42112.0,42111.0,0.05977]
[1642678387216,1.77938271,42112.0,42111.0,0.07077]
[1642678388219,1.77938271,42112.0,42111.0,0.31077]
[1642678388424,1.77938271,42112.0,42111.0,0.29977]
[1642678388618,1.77938271,42112.0,42111.0,0.39977]
[1642678389318,1.77938271,42112.0,42111.0,0.40977]
[1642678389721,1.77938271,42112.0,42111.0,0.36187]
[1642678391172,1.77938271,42112.0,42111.0,0.37287]
[1642678391369,1.77938271,42112.0,42111.0,0.27287]
[1642678392373,0.059359,42113.0,42111.0,0.27287]
[1642678392571,0.059359,42113.0,42112.0,0.3835]
[1642678392970,0.05954809,42113.0,42112.0,0.4835]
[1642678393177,0.05954809,42113.0,42112.0,0.4935]
[1642678393471,0.05954809,42113.0,42112.0,0.78534313]
[1642678393677,0.05954809,42113.0,42112.0,0.50537]
[1642678394112,0.05954809,42113.0,42112.0,0.12187]
[1642678394515,0.05954809,42113.0,42112.0,0.02187]
[1642678395112,0.05954809,42113.0,42112.0,0.01187]
[1642678396619,0.05954809,42113.0,42112.0,0.33853046]
[1642678396817,0.05954809,42113.0,42112.0,1.70227]
[1642678397016,0.05954809,42113.0,42112.0,1.80227]
[1642678397214,0.05954809,42113.0,42112.0,1.81527]
[1642678398457,0.05954809,42113.0,42112.0,1.80227]
[1642678399061,0.00018909,42113.0,42112.0,1.80227]
[1642678399257,0.00018909,42113.0,42112.0,1.81727]
[1642678400559,0.00018909,42113.0,42112.0,1.80227]
[1642678401261,0.00018909,42113.0,42112.0,2.15340835]
[1642678401516,0.00018909,42113.0,42112.0,2.20840115]
[1642678401721,0.00018909,42113.0,42112.0,2.81393409]
[1642678401917,0.0010621,42115.0,42114.0,1.05]
[1642678402118,0.0010621,42115.0,42114.0,2.23768374]
[1642678402316,0.0010621,42115.0,42114.0,2.24955374]
[1642678402517,0.0010621,42115.0,42114.0,3.50855374]
[1642678403016,0.00106213,42117.0,42114.0,3.50855374]
[1642678403218,0.00106213,42117.0,42116.0,1.4335]
[1642678403417,0.00106213,42117.0,42116.0,2.75227]
[1642678403620,0.00113089,42117.0,42116.0,2.85227]
[1642678404023,6.876e-05,42117.0,42116.0,2.85227]
[1642678404822,0.00106216,42119.0,42116.0,2.85227]
[1642678404823,0.00106216,42119.0,42118.0,1.05]
[1642678405034,0.00106216,42119.0,42118.0,2.67714533]
[1642678405263,0.42,42129.0,42118.0,2.67714533]
[1642678405465,0.42,42129.0,42123.0,0.2]
[1642678405664,0.42,42129.0,42127.0,2.3425]
[1642678405865,0.42,42129.0,42127.0,2.50157]
[1642678406062,0.45763744,42128.0,42127.0,2.60157]
[1642678406268,0.03763744,42128.0,42127.0,2.60157]
[1642678406663,0.03763744,42128.0,42127.0,1.90157]
[1642678406867,0.03763744,42128.0,42127.0,1.80227]
[1642678407268,0.03763744,42128.0,42127.0,1.81727]
[1642678408468,0.03763744,42128.0,42127.0,1.80227]
[1642678409315,0.03763744,42128.0,42127.0,1.82027]
[1642678410525,0.03763744,42128.0,42127.0,0.73537]
[1642678410742,0.03763744,42128.0,42127.0,0.35127798]
[1642678411417,0.03763744,42128.0,42127.0,0.37127798]
[1642678411817,0.03763744,42128.0,42127.0,0.75477798]
[1642678412419,0.03763744,42128.0,42127.0,0.81411298]
[1642678412618,0.03763744,42128.0,42127.0,1.09564188]
[1642678413259,0.03763744,42128.0,42127.0,1.11564188]
[1642678413759,0.03763744,42128.0,42127.0,0.75477798]
[1642678414566,0.03763744,42128.0,42127.0,0.73477798]
[1642678415264,0.03763744,42128.0,42127.0,1.05568643]
[1642678415462,0.03763744,42128.0,42127.0,2.37401743]
[1642678416614,0.03763744,42128.0,42127.0,2.35401743]
[1642678417014,0.03763744,42128.0,42127.0,2.29468643]
[1642678417319,0.03763744,42128.0,42127.0,2.31068643]
[1642678417716,0.03763744,42128.0,42127.0,0.75077798]
[1642678418116,0.03763744,42128.0,42127.0,2.06910898]
[1642678418313,0.03763744,42128.0,42127.0,2.06910843]
[1642678418716,0.03763744,42128.0,42127.0,2.05310843]
[1642678419315,0.03763744,42128.0,42127.0,2.06910843]
[1642678420579,0.03763744,42128.0,42127.0,2.05310843]
[1642678421379,0.03683744,42128.0,42127.0,2.06810843]
[1642678421880,0.03683744,42128.0,42127.0,0.74977743]
[1642678422682,0.03683744,42128.0,42127.0,0.36627743]
[1642678423284,0.03683744,42128.0,42127.0,0.36927743]
[1642678424020,0.32751304,42128.0,42127.0,0.36927743]
[1642678424619,0.32751304,42128.0,42127.0,0.35127743]
[1642678425420,0.32751304,42128.0,42127.0,0.26727743]
[1642678425623,0.97751304,42128.0,42127.0,0.256]
[1642678425825,1.41101304,42128.0,42127.0,0.256]
[1642678426025,1.41101304,42128.0,42127.0,0.25586129]
[1642678426628,1.41101304,42128.0,42127.0,0.23986129]
[1642678426822,0.76101304,42128.0,42127.0,0.23986129]
[1642678427423,0.76901304,42128.0,42127.0,0.25086129]
[1642678428263,0.47833744,42128.0,42127.0,0.25086129]
[1642678428663,0.47033744,42128.0,42127.0,0.23986129]
[1642678429266,0.76906381,42128.0,42127.0,0.24886129]
[1642678429467,0.76906381,42128.0,42123.0,0.01127743]
[1642678429468,0.85,42127.0,42118.0,0.01127743]
[1642678429666,0.118716,42125.0,42118.0,0.01127743]
[1642678429869,0.32402508,42124.0,42118.0,0.01127743]
[1642678430066,0.11871344,42123.0,42118.0,0.01127743]
[1642678430272,0.11881658,42123.0,42118.0,0.01127743]
[1642678430466,0.64703265,42124.0,42118.0,0.01127743]
[1642678430467,0.2749321,42122.0,42118.0,0.01127743]
[1642678430667,0.05935643,42121.0,42118.0,0.01127743]
[1642678430868,0.35075489,42121.0,42118.0,0.01127743]
[1642678431515,0.35075489,42121.0,42118.0,0.04127743]
[1642678431716,0.35075489,42121.0,42120.0,0.01127743]
[1642678432116,0.29139846,42121.0,42120.0,0.01127743]
[1642678432922,6.876e-05,42121.0,42120.0,0.01127743]
[1642678433116,6.876e-05,42121.0,42120.0,0.25127743]
[1642678433318,6.876e-05,42121.0,42120.0,0.26827743]
[1642678434721,6.876e-05,42121.0,42120.0,0.25127743]
[1642678435567,6.876e-05,42121.0,42120.0,0.26827743]
[1642678436561,6.876e-05,42121.0,42120.0,0.25127743]
[1642678437361,6.876e-05,42121.0,42120.0,0.26727743]
[1642678437562,0.45006876,42121.0,42120.0,0.26227743]
[1642678437863,6.876e-05,42121.0,42120.0,0.26227743]
[1642678438067,6.876e-05,42121.0,42120.0,0.26787]
[1642678438664,6.876e-05,42121.0,42120.0,0.25187]
[1642678439319,6.876e-05,42121.0,42120.0,0.26587]
[1642678440724,6.876e-05,42121.0,42120.0,0.25187]
[1642678441322,6.876e-05,42121.0,42120.0,0.26687]
[1642678442765,6.876e-05,42121.0,42120.0,0.25187]
[1642678443372,6.876e-05,42121.0,42120.0,0.26687]
[1642678444764,6.876e-05,42121.0,42120.0,0.25187]
[1642678445366,6.876e-05,42121.0,42120.0,0.26587]
[1642678446618,6.876e-05,42121.0,42120.0,0.25187]
[1642678447319,6.876e-05,42121.0,42120.0,0.26687]
[1642678448725,6.876e-05,42121.0,42120.0,0.63537]
[1642678449124,6.876e-05,42121.0,42120.0,0.73537]
[1642678449322,6.876e-05,42121.0,42120.0,0.74937]
[1642678450767,6.876e-05,42121.0,42120.0,1.05290996]
[1642678451468,6.876e-05,42121.0,42120.0,0.74937]
[1642678452467,6.876e-05,42121.0,42120.0,0.74503114]
[1642678452668,6.876e-05,42121.0,42120.0,0.73103114]
[1642678453369,6.876e-05,42121.0,42120.0,0.74503114]
[1642678453869,6.876e-05,42121.0,42120.0,0.36153114]
[1642678456826,6.876e-05,42121.0,42120.0,0.34753114]
[1642678457424,6.876e-05,42121.0,42120.0,0.36153114]
[1642678458266,6.876e-05,42121.0,42120.0,0.26153114]
[1642678458462,6.876e-05,42121.0,42120.0,0.36153114]
[1642678458864,6.876e-05,42121.0,42120.0,0.34753114]
[1642678459360,6.876e-05,42121.0,42120.0,0.36153114]
[1642678459764,6.876e-05,42121.0,42120.0,0.74503114]
[1642678460162,6.876e-05,42121.0,42120.0,0.79293114]
[1642678460562,6.876e-05,42121.0,42120.0,1.10325754]
[1642678460764,6.876e-05,42121.0,42120.0,1.08925754]
[1642678461369,6.876e-05,42121.0,42120.0,1.10325754]
[1642678462621,6.876e-05,42121.0,42120.0,1.16259654]
[1642678462819,0.03481968,42128.0,42120.0,1.16259654]
[1642678463018,0.00106221,42123.0,42121.0,0.55]
[1642678463218,0.00106221,42123.0,42122.0,0.68604995]
[1642678463418,0.00106221,42123.0,42122.0,0.79791995]
[1642678463618,0.00106221,42123.0,42122.0,2.05691995]
[1642678464024,8.595e-05,42126.0,42122.0,2.32312633]
[1642678464221,0.00106224,42125.0,42122.0,2.32312633]
[1642678464420,0.001131,42125.0,42124.0,0.3835]
[1642678464619,0.001131,42125.0,42124.0,0.80200183]
[1642678465261,6.876e-05,42125.0,42124.0,0.80200183]
[1642678465464,6.876e-05,42125.0,42124.0,0.81400183]
[1642678465861,6.876e-05,42125.0,42124.0,0.50737]
[1642678466665,6.876e-05,42125.0,42124.0,0.49537]
[1642678467463,6.876e-05,42125.0,42124.0,0.12387]
[1642678467661,6.876e-05,42125.0,42124.0,0.02387]
[1642678469518,6.876e-05,42125.0,42124.0,0.03587]
[1642678470913,6.876e-05,42125.0,42124.0,0.01187]
[1642678474970,6.876e-05,42125.0,42124.0,0.26187]
[1642678475572,6.876e-05,42125.0,42124.0,0.02387]
[1642678476819,6.876e-05,42125.0,42124.0,0.01187]
[1642678477420,6.876e-05,42125.0,42124.0,0.02387]
[1642678478624,6.876e-05,42125.0,42124.0,0.01187]
[1642678479422,6.876e-05,42125.0,42124.0,0.02187]
[1642678480022,0.10200895,42125.0,42124.0,0.02187]
[1642678481270,6.876e-05,42125.0,42124.0,0.02187]
[1642678481470,6.876e-05,42125.0,42124.0,0.03187]
[1642678483075,6.876e-05,42125.0,42124.0,0.01187]
[1642678483473,0.10202237,42125.0,42124.0,0.01187]
[1642678483675,6.876e-05,42125.0,42124.0,0.01187]
[1642678485517,6.876e-05,42125.0,42124.0,0.02287]
[1642678486717,6.876e-05,42125.0,42124.0,0.01187]
[1642678487519,6.876e-05,42125.0,42124.0,0.02287]
[1642678488665,6.876e-05,42125.0,42124.0,0.01187]
[1642678489364,6.876e-05,42125.0,42124.0,0.02287]
[1642678490766,6.876e-05,42125.0,42124.0,0.01187]
[1642678491367,6.876e-05,42125.0,42124.0,0.39537]
[1642678491614,6.876e-05,42125.0,42124.0,0.50637]
[1642678491813,6.876e-05,42125.0,42124.0,0.80798252]
[1642678492214,6.876e-05,42125.0,42124.0,0.92664952]
[1642678493412,6.876e-05,42125.0,42124.0,0.93864952]
[1642678493813,6.876e-05,42125.0,42124.0,0.92764952]
[1642678494414,6.876e-05,42125.0,42124.0,0.80898252]
[1642678494818,6.876e-05,42125.0,42124.0,0.79698252]
[1642678495274,6.876e-05,42125.0,42124.0,0.49537]
[1642678495473,6.876e-05,42125.0,42124.0,0.12387]
[1642678495678,6.876e-05,42125.0,42124.0,0.02387]
[1642678496277,0.3530266,42125.0,42124.0,0.02387]
[1642678496474,0.2510301,42125.0,42124.0,0.02387]
[1642678496774,0.2510301,42125.0,42124.0,0.01187]
[1642678496975,0.3530266,42125.0,42124.0,0.01187]
[1642678497174,0.2510301,42125.0,42124.0,0.01187]
[1642678497574,0.36503536,42125.0,42124.0,0.02187]
[1642678498778,0.35303536,42125.0,42124.0,0.01187]
[1642678499416,0.36503536,42125.0,42124.0,0.02187]
[1642678500216,0.11407402,42125.0,42124.0,0.02187]
[1642678500724,0.10207402,42125.0,42124.0,0.01187]
[1642678501717,0.10207402,42125.0,42124.0,0.02187]
[1642678502773,0.10207402,42125.0,42124.0,0.01187]
[1642678503572,0.10207402,42125.0,42124.0,0.02187]
[1642678504773,0.10207402,42125.0,42124.0,0.01187]
[1642678505578,6.876e-05,42125.0,42124.0,0.02187]
[1642678506619,6.876e-05,42125.0,42124.0,0.40537]
[1642678506820,6.876e-05,42125.0,42124.0,0.79583067]
[1642678507720,6.876e-05,42125.0,42124.0,0.80783067]
[1642678507920,6.876e-05,42125.0,42124.0,1.41336361]
[1642678508324,6.876e-05,42125.0,42124.0,0.80783067]
[1642678508533,6.876e-05,42125.0,42124.0,0.85573067]
[1642678508723,6.876e-05,42125.0,42124.0,0.84373067]
[1642678509323,6.876e-05,42125.0,42124.0,2.10273067]
[1642678509523,6.876e-05,42125.0,42124.0,0.85573067]
[1642678510766,6.876e-05,42125.0,42124.0,0.84373067]
[1642678510963,6.876e-05,42125.0,42124.0,0.54327]
[1642678511274,6.876e-05,42125.0,42124.0,1.43784243]
[1642678511464,6.876e-05,42125.0,42124.0,1.44984243]
[1642678511664,0.00106226,42127.0,42126.0,0.29556729]
[1642678511665,0.00033102,42127.0,42126.0,0.29556729]
[1642678512063,0.03481968,42128.0,42126.0,0.29556729]
[1642678512464,0.03481968,42128.0,42127.0,0.01187]
[1642678513465,0.06981968,42128.0,42127.0,0.02087]
[1642678513665,0.01981968,42128.0,42127.0,0.02087]
[1642678514112,0.07916219,42128.0,42127.0,0.02087]
[1642678514712,0.05934251,42128.0,42127.0,0.01187]
[1642678515713,0.05934251,42128.0,42127.0,0.02587]
[1642678516713,0.05934251,42128.0,42127.0,0.01187]
[1642678517516,0.05934251,42128.0,42127.0,0.02587]
[1642678518984,0.16140625,42128.0,42127.0,0.02587]
[1642678519585,0.16140625,42128.0,42127.0,0.03987]
[1642678519885,0.16140625,42128.0,42127.0,0.02587]
[1642678520785,0.16140625,42128.0,42127.0,0.01187]
[1642678520986,0.16140625,42128.0,42127.0,0.01442954]
[1642678521638,0.16140625,42128.0,42127.0,0.03242954]
[1642678522739,0.16140625,42128.0,42127.0,0.01442954]
[1642678522940,0.21140625,42128.0,42127.0,0.00255954]
[1642678523638,0.21140625,42128.0,42127.0,0.02455954]
[1642678523839,0.21087625,42128.0,42127.0,0.02455954]
[1642678524739,0.21087625,42128.0,42127.0,0.00255954]
[1642678525467,0.21087625,42128.0,42127.0,0.02655954]
[1642678525868,0.21087625,42128.0,42127.0,0.024]
[1642678526669,0.21087625,42128.0,42123.0,0.01187]
[1642678527270,0.10206374,42127.0,42123.0,0.01187]
[1642678527569,0.10206374,42127.0,42123.0,0.03187]
[1642678528774,0.10206374,42127.0,42123.0,0.01187]
[1642678529011,0.21087625,42128.0,42123.0,0.01187]
[1642678529216,0.10206374,42126.0,42123.0,0.01187]
[1642678529411,0.38240857,42127.0,42123.0,0.01187]
[1642678529616,0.05,42126.0,42123.0,0.02]
[1642678529814,0.1614153,42125.0,42123.0,0.02]
[1642678530013,0.2114153,42125.0,42123.0,0.02]
[1642678530214,0.10935156,42125.0,42123.0,0.02]
[1642678530615,0.05935156,42125.0,42123.0,0.02]
[1642678530814,0.05935156,42125.0,42122.0,0.536184]
[1642678531415,0.11870578,42124.0,42122.0,0.536184]
[1642678531614,0.05935161,42124.0,42122.0,0.562184]
[1642678532764,0.10935161,42124.0,42122.0,0.536184]
[1642678533165,0.10935161,42124.0,42123.0,0.3835]
[1642678533566,0.10935161,42124.0,42123.0,0.4835]
[1642678533768,0.21119891,42124.0,42123.0,0.4835]
[1642678534567,0.10935161,42124.0,42123.0,0.4835]
[1642678534967,0.10935161,42124.0,42123.0,0.1]
[1642678535179,0.21132135,42124.0,42122.0,0.536184]
[1642678535468,0.10935161,42124.0,42122.0,0.536184]
[1642678535768,0.10935161,42124.0,42123.0,0.026]
[1642678536617,0.21117669,42124.0,42123.0,0.026]
[1642678536818,0.10935161,42124.0,42122.0,0.536184]
[1642678537217,0.10935161,42124.0,42123.0,0.3835]
[1642678537618,0.10935161,42124.0,42123.0,0.1]
[1642678537817,0.21117545,42124.0,42123.0,0.1]
[1642678538618,0.21117545,42124.0,42122.0,0.610184]
[1642678538819,0.21117545,42124.0,42122.0,0.536184]
[1642678539020,0.10935161,42124.0,42122.0,0.536184]
[1642678539623,0.10181958,42123.0,42122.0,0.561184]
[1642678540026,0.10935161,42124.0,42122.0,0.561184]
[1642678540760,0.10935161,42124.0,42122.0,0.536184]
[1642678540960,0.10194979,42123.0,42122.0,0.536184]
[1642678541564,0.10194979,42123.0,42122.0,0.570184]
[1642678542765,0.10194979,42123.0,42122.0,0.536184]
[1642678543668,0.10194979,42123.0,42122.0,0.567184]
[1642678544115,0.38782232,42123.0,42122.0,0.567184]
[1642678544919,0.10194979,42123.0,42122.0,0.567184]
[1642678545519,0.10194979,42123.0,42122.0,0.563184]
[1642678546120,0.38907504,42123.0,42122.0,0.563184]